fUSD/lending_fUSD_20240702
["ID","MTS","AMOUNT","RATE_DAILY","PERIOD"]
[330940518,1719955846629,-1707.66,0.00016225,2]
[330940520,1719955846638,-418.94,0.00016225,2]
[330940523,1719955846648,-2023.01837486,0.00016257,2]
[330940524,1719955846658,-418.94,0.00016274,2]
[330940526,1719955846667,-418.94,0.00016274,2]
[330940528,1719955846677,-418.94,0.00016274,2]
[330940530,1719955846686,-418.94,0.00016274,2]
[330940532,1719955846695,-279.07,0.00016393,2]
[330940534,1719955846704,-33393.35322328,0.00016467,2]
[330940536,1719955846713,-6350.21431613,0.00016527,2]
[330940538,1719955846722,-1759.05412823,0.00016566,2]
[330940540,1719955846731,-200.46046511,0.00016675,2]
[330940542,1719955846740,-424.24,0.00016734,2]
[330940544,1719955846750,-159.92,0.00016734,2]
[330940546,1719955846760,-150.0,0.00016734,2]
[330940548,1719955846770,-150.0,0.00016734,2]
[330940550,1719955846780,-713.56,0.00016741,2]
[330940552,1719955846789,-281.98,0.00016741,2]
[330940554,1719955846798,-169.41,0.00016741,2]
[330940556,1719955846807,-3531.0,0.000169,2]
[330940558,1719955846817,-823.0,0.00016933,2]
[330940560,1719955846826,-2023.01837486,0.00016936,2]
[330940562,1719955846835,-749.955191,0.00016986,2]
[330940564,1719955846845,-2490.29099852,0.00017,2]
[330940566,1719955846854,-173.04,0.0001714,2]
[330940568,1719955846863,-853.94,0.00017184,2]
[330940570,1719955846872,-375.68,0.00017184,2]
[330940572,1719955846881,-977.36,0.00017184,2]
[330940574,1719955846890,-150.0,0.00017233,2]
[330940576,1719955846901,-527.44,0.00017233,2]
[330940578,1719955846913,-179.33,0.00017233,2]
[330940580,1719955846922,-500.0,0.00017236,2]
[330940582,1719955846932,-174.32853659,0.00017267,2]
[330940584,1719955846943,-11482.0,0.000173,3]
[330940586,1719955846953,-33393.35322328,0.00017389,2]
[330940588,1719955846962,-6350.21431613,0.00017439,2]
[330940590,1719955846971,-1000.0,0.00017611,2]
[330940592,1719955846981,-2023.01837486,0.00017615,2]
[330940594,1719955846989,-535.07,0.00017649,2]
[330940596,1719955846999,-718.0,0.000177,3]
[330940598,1719955847008,-2611.0,0.000177,3]
[330940599,1719955847017,-11482.0,0.000177,5]
[330940601,1719955847026,-526.21157306,0.00017703,2]
[330940604,1719955847035,-749.955191,0.00017808,2]
[330940605,1719955847044,-370.47189794,0.00018,2]
[330940607,1719955847054,-279.07,0.00018032,2]
[330940609,1719955847065,-150.0,0.00018055,2]
[330940612,1719955847075,-150.0,0.00018055,2]
[330940614,1719955847084,-150.0,0.00018055,2]
[330940616,1719955847093,-2023.01837486,0.00018293,2]
[330940618,1719955847102,-587.0,0.00018311,2]
[330940620,1719955847112,-33393.35322328,0.00018311,2]
[330940622,1719955847121,-500.0,0.00018332,2]
[330940624,1719955847129,-6350.21431613,0.00018351,2]
[330940625,1719955847140,-200.46046511,0.0001845,2]
[330940627,1719955847149,-388.94841588,0.0001845,2]
[330940629,1719955847158,-1639.0,0.00018468,2]
[330940631,1719955847167,-1164.914,0.00018468,2]
[330940633,1719955847176,-1308.486,0.00018468,2]
[330940635,1719955847185,-1274.0,0.00018468,2]
[330940637,1719955847195,-291.0,0.00018468,2]
[330940639,1719955847204,-1198.0,0.00018468,2]
[330940641,1719955847213,-1906.74,0.00018468,2]
[330940643,1719955847222,-443.0,0.00018468,2]
[330940645,1719955847231,-460.693,0.00018468,2]
[330940647,1719955847241,-1152.0,0.00018573,2]
[330940650,1719955847250,-150.0,0.00018603,2]
[330940652,1719955847259,-749.955191,0.0001863,2]
[330940653,1719955847268,-1070.0,0.00018848,2]
[330940655,1719955847278,-160.33,0.00018849,30]
[330940658,1719955847287,-18941.89344148,0.000189,2]
[330940659,1719955847296,-2023.01837486,0.00018972,2]
[330940662,1719955847305,-853.94,0.00019153,2]
[330940663,1719955847314,-853.94,0.00019153,2]
[330940665,1719955847324,-500.0,0.00019178,2]
[330940667,1719955847333,-824.91,0.00019178,2]
[330940669,1719955847342,-250.0,0.00019178,2]
[330940671,1719955847351,-525.93,0.00019178,2]
[330940674,1719955847360,-1000.0,0.00019212,2]
[330940675,1719955847369,-33393.35322328,0.00019233,2]
[330940677,1719955847379,-233.36,0.00019238,2]
[330940680,1719955847388,-6350.21431613,0.00019263,2]
[330940681,1719955847397,-354.42237248,0.00019279,2]
[330940683,1719955847407,-176.37,0.00019292,2]
[330940685,1719955847416,-485.24402982,0.00019352,2]
[330940687,1719955847425,-529.65728417,0.00019354,2]
[330940689,1719955847434,-155.0,0.00019389,2]
[330940691,1719955847443,-155.0,0.00019399,2]
[330940693,1719955847452,-438.49798576,0.00019399,2]
[330940695,1719955847461,-500.0,0.00019428,2]
[330940697,1719955847470,-749.955191,0.00019452,2]
[330940699,1719955847479,-174.32853659,0.00019633,2]
[330940701,1719955847488,-326.2,0.00019647,2]
[330940703,1719955847497,-405.783,0.00019647,2]
[330940705,1719955847506,-523.142,0.00019647,2]
[330940707,1719955847515,-2023.01837486,0.0001965,2]
[330940709,1719955847524,-279.07,0.00019672,2]
[330940711,1719955847533,-150.0,0.00019775,4]
[330940713,1719955847542,-800.00000531,0.00019874,5]
[330940715,1719955847552,-155.0,0.00019899,2]
[330940717,1719955847561,-535.07,0.00019912,2]
[330940719,1719955847570,-150.0,0.00019913,4]
[330940721,1719955847580,-544.56604372,0.00019997,2]
[330940723,1719955847589,-368.88937692,0.00019997,2]
[330940725,1719955847599,-669.96579635,0.0002,2]
[330940727,1719955847608,-188.14281244,0.0002,2]
[330940729,1719955847618,-2247.15697919,0.0002,2]
[330940731,1719955847627,-905.2384349,0.0002,2]
[330940733,1719955847636,-271.86613076,0.0002,2]
[330940735,1719955847645,-191.0,0.0002,2]
[330940737,1719955847654,-6276.62953969,0.0002,2]
[330940739,1719955847663,-214.03634064,0.0002,2]
[330940741,1719955847672,-214.03634064,0.0002,2]
[330940743,1719955847682,-214.03634064,0.0002,2]
[330940745,1719955847691,-214.03634064,0.0002,2]
[330940747,1719955847700,-214.03634064,0.0002,2]
[330940749,1719955847709,-214.03634064,0.0002,2]
[330940751,1719955847718,-214.03634064,0.0002,2]
[330940753,1719955847727,-214.03634064,0.0002,2]
[330940755,1719955847736,-214.03634064,0.0002,2]
[330940757,1719955847745,-214.03634064,0.0002,2]
[330940759,1719955847755,-214.03634064,0.0002,2]
[330940761,1719955847765,-214.03634064,0.0002,2]
[330940763,1719955847774,-214.03634064,0.0002,2]
[330940765,1719955847783,-214.03634064,0.0002,2]
[330940767,1719955847792,-214.03634064,0.0002,2]
[330940769,1719955847802,-214.03634064,0.0002,2]
[330940771,1719955847811,-214.03634064,0.0002,2]
[330940773,1719955847821,-214.03634064,0.0002,2]
[330940775,1719955847830,-214.03634064,0.0002,2]
[330940777,1719955847838,-214.03634064,0.0002,2]
[330940779,1719955847848,-214.03634064,0.0002,2]
[330940781,1719955847857,-214.03634064,0.0002,2]
[330940783,1719955847866,-214.03634064,0.0002,2]
[330940785,1719955847875,-214.03634064,0.0002,2]
[330940787,1719955847885,-214.03634064,0.0002,2]
[330940789,1719955847894,-214.03634064,0.0002,2]
[330940791,1719955847909,-214.03634064,0.0002,2]
[330940793,1719955847918,-214.03634064,0.0002,2]
[330940795,1719955847928,-214.03634064,0.0002,2]
[330940797,1719955847938,-214.03634064,0.0002,2]
[330940799,1719955847950,-214.03634064,0.0002,2]
[330940801,1719955847959,-214.03634064,0.0002,2]
[330940803,1719955847968,-214.03634064,0.0002,2]
[330940805,1719955847977,-214.03634064,0.0002,2]
[330940806,1719955847990,-214.03634064,0.0002,2]
[330940807,1719955847999,-214.03634064,0.0002,2]
[330940808,1719955848009,-214.03634064,0.0002,2]
[330940809,1719955848018,-214.03634064,0.0002,2]
[330940810,1719955848028,-214.03634064,0.0002,2]
[330940811,1719955848037,-214.03634064,0.0002,2]
[330940812,1719955848046,-214.03634064,0.0002,2]
[330940813,1719955848056,-214.03634064,0.0002,2]
[330940814,1719955848066,-214.03634064,0.0002,2]
[330940815,1719955848076,-500.0,0.00020045,2]
[330940816,1719955848086,-150.0,0.0002005,4]
[330940817,1719955848095,-304.38,0.00020072,2]
[330940818,1719955848104,-354.67,0.00020072,2]
[330940819,1719955848114,-150.31,0.00020072,2]
[330940821,1719955848123,-424.24,0.00020072,2]
[330940823,1719955848132,-164.78,0.00020072,2]
[330940825,1719955848141,-150.0,0.00020072,2]
[330940827,1719955848151,-150.0,0.00020072,2]
[330940829,1719955848160,-424.24,0.00020072,2]
[330940831,1719955848169,-150.0,0.00020072,2]
[330940833,1719955848178,-150.0,0.00020072,2]
[330940835,1719955848187,-424.24,0.00020072,2]
[330940837,1719955848196,-150.0,0.00020072,2]
[330940839,1719955848206,-150.0,0.00020072,2]
[330940841,1719955848215,-354.77,0.0002008,2]
[330940843,1719955848224,-164.82,0.0002008,2]
[330940845,1719955848233,-354.77,0.0002008,2]
[330940847,1719955848242,-354.77,0.0002008,2]
[330940849,1719955848251,-164.82,0.0002008,2]
[330940851,1719955848260,-33393.35322328,0.00020156,2]
[330940853,1719955848270,-6350.21431613,0.00020176,2]
[330940855,1719955848279,-500.0,0.00020182,2]
[330940858,1719955848288,-150.0,0.00020187,4]
[330940860,1719955848298,-200.46046511,0.00020225,2]
[330940861,1719955848308,-749.955191,0.00020274,2]
[330940864,1719955848318,-150.0,0.00020325,4]
[330940865,1719955848327,-2023.01837486,0.00020329,2]
[330940868,1719955848337,-500.0,0.0002037,2]
[330940870,1719955848347,-1613.0,0.00020372,2]
[330940872,1719955848356,-500.0,0.00020456,2]
[330940874,1719955848366,-150.0,0.00020462,4]
[330940876,1719955848375,-150.0,0.00020463,2]
[330940877,1719955848384,-150.0,0.00020463,2]
[330940880,1719955848394,-150.0,0.00020463,2]
[330940882,1719955848404,-150.0,0.00020463,2]
[330940884,1719955848413,-150.0,0.00020463,2]
[330940886,1719955848423,-150.0,0.00020463,2]
[330940887,1719955848432,-150.0,0.00020463,2]
[330940889,1719955848442,-150.0,0.00020463,2]
[330940892,1719955848451,-1000.0,0.00020547,3]
[330940894,1719955848461,-150.0,0.00020599,4]
[330940895,1719955848470,-150.0,0.00020737,4]
[330940898,1719955848480,-1000.0,0.00020821,4]
[330940899,1719955848489,-150.0,0.00020874,4]
[330940902,1719955848499,-848.48,0.00020893,2]
[330940904,1719955848508,-300.0,0.00020893,2]
[330940906,1719955848517,-424.24,0.00020893,2]
[330940907,1719955848526,-301.74,0.00020893,2]
[330940909,1719955848535,-424.24,0.00020893,2]
[330940911,1719955848544,-164.82,0.00020902,2]
[330940913,1719955848556,-329.64,0.00020902,2]
[330940915,1719955848570,-709.54,0.00020902,2]
[330940917,1719955848578,-164.82,0.00020902,2]
[330940919,1719955848588,-354.77,0.00020902,2]
[330940921,1719955848597,-164.82,0.00020902,2]
[330940923,1719955848607,-423.16,0.00020902,2]
[330940925,1719955848616,-353.97,0.00020902,2]
[330940927,1719955848625,-164.46,0.00020902,2]
[330940930,1719955848635,-21840.0,0.00021,2]
[330940931,1719955848644,-1250.0,0.00021,2]
[330940934,1719955848654,-2023.01837486,0.00021008,2]
[330940936,1719955848663,-150.0,0.00021011,4]
[330940938,1719955848673,-6350.21431613,0.00021088,2]
[330940940,1719955848682,-1000.0,0.00021095,5]
[330940942,1719955848691,-749.955191,0.00021096,2]
[330940943,1719955848700,-150.0,0.00021149,4]
[330940945,1719955848710,-150.0,0.00021286,4]
[330940947,1719955848719,-150.0,0.00021423,4]
[330940949,1719955848728,-291.0,0.00021468,2]
[330940952,1719955848737,-1198.0,0.00021468,2]
[330940954,1719955848747,-150.0,0.00021561,4]
[330940956,1719955848756,-198.0,0.0002163,3]
[330940957,1719955848765,-285.0,0.00021644,2]
[330940960,1719955848775,-329.94,0.00021644,2]
[330940962,1719955848784,-156.12,0.00021644,2]
[330940963,1719955848793,-1488.51574263,0.00021646,2]
[330940965,1719955848804,-2023.01837486,0.00021686,2]
[330940967,1719955848813,-150.0,0.00021698,4]
[330940970,1719955848822,-1278.53356093,0.00021701,2]
[330940972,1719955848832,-716.13847324,0.00021727,2]
[330940973,1719955848841,-867.43227348,0.00021727,2]
[330940975,1719955848850,-155.0,0.00021742,2]
[330940978,1719955848860,-3172.32459788,0.00021742,2]
[330940979,1719955848869,-354.77,0.00021756,2]
[330940982,1719955848878,-164.82,0.00021756,2]
[330940984,1719955848888,-429.71,0.00021756,2]
[330940986,1719955848897,-327.11942367,0.0002176,2]
[330940987,1719955848909,-377.0,0.00021825,2]
[330940990,1719955848919,-150.0,0.00021835,4]
[330940992,1719955848929,-792.925,0.00021848,2]
[330940994,1719955848939,-500.0,0.00021868,2]
[330940996,1719955848950,-500.0,0.00021877,2]
[330940998,1719955848959,-500.0,0.00021886,2]
[330941000,1719955848969,-500.0,0.00021894,2]
[330941002,1719955848978,-20000.0,0.000219,2]
[330941004,1719955848990,-500.0,0.00021903,2]
[330941006,1719955848999,-500.0,0.00021912,2]
[330941008,1719955849008,-500.0,0.00021917,2]
[330941010,1719955849017,-243.38,0.00021918,2]
[330941012,1719955849027,-150.39504244,0.00021918,5]
[330941014,1719955849036,-150.36,0.00021918,2]
[330941016,1719955849045,-150.0,0.00021918,2]
[330941018,1719955849055,-500.0,0.00021921,2]
[330941020,1719955849064,-500.0,0.0002193,2]
[330941022,1719955849074,-500.0,0.00021938,2]
[330941024,1719955849084,-500.0,0.00021947,2]
[330941026,1719955849093,-500.0,0.00021956,2]
[330941028,1719955849102,-500.0,0.00021965,2]
[330941030,1719955849112,-211.49198651,0.00021973,4]
[330941032,1719955849121,-150.0,0.00021973,4]
[330941034,1719955849130,-150.0,0.00021973,4]
[330941036,1719955849139,-150.0,0.00021973,4]
[330941038,1719955849148,-150.0,0.00021973,4]
[330941040,1719955849159,-150.0,0.00021973,4]
[330941042,1719955849168,-150.0,0.00021973,4]
[330941044,1719955849177,-150.0,0.00021973,4]
[330941046,1719955849187,-150.0,0.00021973,4]
[330941048,1719955849196,-150.0,0.00021973,4]
[330941050,1719955849205,-150.0,0.00021973,4]
[330941052,1719955849215,-298.05195617,0.00021973,4]
[330941054,1719955849224,-150.00000001,0.00021973,4]
[330941056,1719955849233,-150.0,0.00021973,4]
[330941058,1719955849242,-150.0,0.00021973,4]
[330941060,1719955849252,-500.0,0.00021974,2]
[330941062,1719955849261,-500.0,0.00021982,2]
[330941064,1719955849271,-1000.0,0.00021987,7]
[330941082,1719955849430,-500.0,0.00021991,2]
[330941084,1719955849440,-150.0,0.00021999,10]
[330941086,1719955849449,-150.0,0.00021999,10]
[330941088,1719955849458,-500.0,0.00022,2]
[330941090,1719955849467,-20240.0,0.00022,2]
[330941092,1719955849477,-250.0,0.00022,2]
[330941094,1719955849487,-1800.0,0.00022,23]
[330941096,1719955849496,-500.0,0.00022,2]
[330941098,1719955849506,-15061.5887734,0.00022,2]
[330941100,1719955849515,-306.26287443,0.00022,2]
[330941102,1719955849524,-500.0,0.00022,2]
[330941104,1719955849533,-200.46046511,0.00022,2]
[330941106,1719955849542,-5800.0,0.00022,2]
[330941108,1719955849552,-27354.45698473,0.00022,2]
[330941110,1719955849562,-192.459653,0.00022,2]
[330941112,1719955849571,-6350.21431613,0.00022,2]
[330941114,1719955849580,-174.32853659,0.00022,2]
[330941116,1719955849590,-388.94841588,0.00022,2]
[330941118,1719955849599,-150.0,0.00022015,4]
[330941120,1719955849608,-590.98,0.00022027,2]
[330941122,1719955849617,-418.94,0.00022027,2]
[330941124,1719955849626,-418.94,0.00022027,2]
[330941126,1719955849636,-414.32,0.00022027,2]
[330941128,1719955849645,-377.0,0.0002205,2]
[330941130,1719955849654,-150.39504244,0.00022055,5]
[330941132,1719955849663,-150.0,0.00022057,4]
[330941135,1719955849673,-1355.0,0.0002206,30]
[330941137,1719955849683,-150.0,0.00022065,4]
[330941138,1719955849693,-1355.0,0.0002207,30]
[330941141,1719955849703,-1355.0,0.0002207,30]
[330941143,1719955849712,-1355.0,0.0002208,30]
[330941144,1719955849721,-1355.0,0.0002208,30]
[330941147,1719955849730,-150.0,0.00022084,10]
[330941148,1719955849739,-35957.1835809,0.00022085,2]
[330941151,1719955849749,-15364.44829159,0.00022085,2]
[330941153,1719955849765,-14749.55605562,0.00022085,2]
[330941155,1719955849776,-1164.33507719,0.00022085,2]
[330941157,1719955849785,-7885.00526281,0.00022085,2]
[330941160,1719955849796,-5453.69448194,0.00022085,2]
[330941162,1719955849808,-5442.5200103,0.00022085,2]
[330941164,1719955849819,-6830.18951547,0.00022085,2]
[330941169,1719955849855,-214.03634064,0.0002,2]
[330941171,1719955849864,-988.08599738,0.00022085,2]
[330941173,1719955849874,-15.47227557,0.00022085,2]
[330941175,1719955849886,-1110.65108149,0.00022085,2]
[330941177,1719955849898,-20794.52775424,0.00022085,2]
[330941179,1719955849912,-2174.2029724,0.00022085,2]
[330941181,1719955849922,-1807.8175715,0.00022085,2]
[330941183,1719955849933,-1441.4321705,0.00022085,2]
[330941186,1719955849943,-87.99018874,0.00022085,2]
[330941188,1719955849955,-987.05658086,0.00022085,2]
[330941190,1719955849964,-397.29647796,0.00022085,2]
[330941193,1719955849984,-2722.13144878,0.00022085,2]
[330941525,1719956071334,150.5,0.0001399,30]
[330941526,1719956071685,271.0,0.0001399,30]
[330941527,1719956071795,150.5,0.0001398,30]
[330941528,1719956072166,271.0,0.0001398,30]
[330941529,1719956072706,271.0,0.0001397,30]
[330941531,1719956191607,190.0,0.0001399,30]
[330941532,1719956191944,190.0,0.0001398,30]
[330941533,1719956192461,190.0,0.0001397,30]
[330941534,1719956194724,150.0,0.0001,2]
[330941535,1719956194745,150.0,0.0001,2]
[330941536,1719956194771,150.0,0.0001,2]
[330941537,1719956194794,150.0,0.0001,2]
[330941538,1719956194816,150.0,0.0001,2]
[330941539,1719956194838,150.0,0.0001,2]
[330941540,1719956194861,150.0,0.0001,2]
[330941541,1719956194883,150.0,0.0001,2]
[330941542,1719956194905,150.0,0.0001,2]
[330941543,1719956194926,150.0,0.0001,2]
[330941544,1719956194946,150.0,0.0001,2]
[330941545,1719956194968,150.0,0.0001,2]
[330941546,1719956194989,150.0,0.0001,2]
[330941547,1719956195014,150.0,0.0001,2]
[330941548,1719956195035,150.0,0.0001,2]
[330941549,1719956195058,1784.17449329,0.0001,2]
[330941550,1719956238006,150.0,0.0001,2]
[330941551,1719956238033,150.0,0.0001,2]
[330941552,1719956238055,150.0,0.0001,2]
[330941553,1719956238077,150.0,0.0001,2]
[330941554,1719956238105,8.50539042,0.0001,2]
[330941556,1719956238895,13778.51726611,0.0001,2]
[330941557,1719956246896,150.0,0.0001,2]
[330941558,1719956246918,150.0,0.0001,2]
[330941559,1719956247196,111.64233461,0.0001,2]
[330941560,1719956253335,290.57460334,0.0001,2]
[330941561,1719956260859,19823.10043926,0.0001,2]
[330941562,1719956283377,290.57460334,0.0001,2]
[330941564,1719956298187,161.35679967,0.00011199,2]
[330941565,1719956304956,346.36623208,0.00011199,2]
[330941566,1719956306458,181.15465308,0.0001,2]
[330941567,1719956311236,168.0,0.0001399,30]
[330941568,1719956311532,150.5,0.0001399,30]
[330941569,1719956312093,150.5,0.0001398,30]
[330941570,1719956312271,168.0,0.0001398,30]
[330941571,1719956312606,150.5,0.0001397,30]
[330941572,1719956312731,168.0,0.0001397,30]
[330941573,1719956313139,150.5,0.0001489,30]
[330941574,1719956313622,150.5,0.0001488,30]
[330941575,1719956313787,168.0,0.0001489,30]
[330941576,1719956314092,150.5,0.0001487,30]
[330941577,1719956314242,168.0,0.0001488,30]
[330941578,1719956314700,168.0,0.0001487,30]
[330941579,1719956317341,528.53097228,0.00011199,2]
[330941581,1719956325903,411.64233461,0.0001,2]
[330941582,1719956337557,155.0,0.00011199,2]
[330941584,1719956338567,300.0,0.00011199,2]
[330941586,1719956350587,370.00600628,0.00011199,2]
[330941587,1719956350626,155.0,0.00011199,2]
[330941588,1719956354360,270.76359065,0.00011199,2]
[330941589,1719956355581,217.83145952,0.00011199,2]
[330941590,1719956378290,160.2728052,0.00011199,2]
[330941591,1719956380876,17609.66045376,0.0001,2]
[330941593,1719956392856,198.28959539,0.00011199,2]
[330941595,1719956407400,155.31165424,0.00011199,2]
[330941600,1719956425902,411.64233461,0.0001,2]
[330941601,1719956427445,181.15465308,0.0001,2]
[330941602,1719956429627,155.0,0.00011199,2]
[330941603,1719956431225,150.5,0.0001399,30]
[330941604,1719956431657,279.67,0.0001398,30]
[330941605,1719956436915,518.46321348,0.00011199,2]
[330941607,1719956442455,181.15465308,0.0001,2]
[330941608,1719956458846,1251.71332179,0.00011199,2]
[330941609,1719956462190,175.29870113,0.00011199,2]
[330941611,1719956518416,411.64233461,0.00011199,2]
[330941612,1719956521794,364.23336272,0.00011199,2]
[330941613,1719956524330,156.75676403,0.00011199,2]
[330941614,1719956525531,155.0,0.00011199,2]
[330941615,1719956531745,155.31794393,0.00011199,2]
[330941616,1719956536519,626.96699205,0.00011199,2]
[330941618,1719956544687,1745.34205599,0.00011199,2]
[330941619,1719956547218,155.15812113,0.00011199,2]
[330941620,1719956551778,27566.74970947,0.00011199,2]
[330941621,1719956553912,162.53,0.00010409,2]
[330941622,1719956554874,-900000.0,0.000225,120]
[330941623,1719956561757,180.92790433,0.00011199,2]
[330941624,1719956567424,-2165088.16380348,0.000225,120]
[330941625,1719956567469,-20000.0,0.00024999,120]
[330941626,1719956567493,-2000.0,0.00025,120]
[330941627,1719956578669,259.07,0.00010343,2]
[330941628,1719956594808,-150.0,0.00025064,120]
[330941629,1719956594832,-104413.33957877,0.0002509,120]
[330941630,1719956594856,-50000.0,0.000251,120]
[330941631,1719956594880,-30000.0,0.000251,120]
[330941632,1719956594906,-307.530878,0.00025149,120]
[330941633,1719956594929,-616.845078,0.00025149,120]
[330941634,1719956594955,-150.0,0.00025431,120]
[330941635,1719956594981,-150.0,0.00025759,120]
[330941636,1719956595006,-150.0,0.00025818,120]
[330941637,1719956595031,-150.0,0.00025833,120]
[330941638,1719956595054,-20000.0,0.00026,120]
[330941639,1719956595082,-333.5534144,0.00026,120]
[330941640,1719956615419,446.9180534,0.00010409,2]
[330941641,1719956648067,3391.35870222,0.00011199,2]
[330941642,1719956669874,890.2391858,0.00011199,2]
[330941643,1719956671784,150.5,0.0001399,30]
[330941644,1719956673741,150.5,0.0001398,30]
[330941645,1719956674205,150.5,0.0001397,30]
[330941646,1719956674664,229.6,0.00014989,30]
[330941647,1719956679644,4934.58850756,0.00011199,2]
[330941650,1719956764036,155.0,0.00011199,2]
[330941652,1719956843843,199.2521534,0.00011199,2]
[330941653,1719956859352,439.0,0.00026,120]
[330941659,1719956982431,2804.87075102,0.00011199,2]
[330941660,1719956982455,5718.57227162,0.00011199,2]
[330941661,1719956982524,4457.9797839,0.00011199,2]
[330941666,1719957002919,153.7131545,0.00011199,2]
[330941687,1719957031921,-511.36,0.00011374,2]
[330941688,1719957031930,-966.291695,0.0001206,2]
[330941689,1719957031939,-527.03163336,0.00012302,2]
[330941690,1719957031949,-345.68956675,0.00012314,2]
[330941691,1719957031959,-339.508947,0.00012314,2]
[330941692,1719957031968,-173.73231677,0.00012314,2]
[330941693,1719957031978,-374.4308496,0.00012314,2]
[330941694,1719957031987,-3759.92983337,0.00012751,2]
[330941695,1719957031996,-200.0,0.00012751,2]
[330941696,1719957032005,-7595.15,0.00012803,2]
[330941697,1719957032015,-659.16,0.0001288,2]
[330941698,1719957032024,-162.71515815,0.00013128,2]
[330941699,1719957032036,-891.49357936,0.00013128,2]
[330941700,1719957032045,-6220.54215746,0.00013128,2]
[330941701,1719957032055,-225.70812466,0.00013128,2]
[330941702,1719957032064,-35651.34853887,0.00013438,2]
[330941703,1719957032074,-298408.0,0.00013448,2]
[330941704,1719957032083,-305.42303826,0.00013472,2]
[330941705,1719957032092,-528.58712719,0.00013472,2]
[330941706,1719957032101,-5943.45171523,0.00013472,2]
[330941707,1719957032111,-2500.0,0.00013484,2]
[330941708,1719957032122,-150.0,0.00013534,2]
[330941709,1719957032133,-999.99,0.00013534,2]
[330941710,1719957032142,-499.99,0.00013574,2]
[330941711,1719957032153,-19819.19559597,0.00013574,2]
[330941712,1719957032162,-17030.952,0.00013584,2]
[330941713,1719957032172,-511.36,0.00013638,2]
[330941714,1719957032181,-162.07,0.00013699,2]
[330941715,1719957032189,-250.0,0.00013708,2]
[330941716,1719957032198,-266.32,0.00013711,2]
[330941717,1719957032208,-782.57,0.00013711,2]
[330941718,1719957032217,-303.96,0.00013711,2]
[330941720,1719957032227,-150.99,0.00013721,2]
[330941722,1719957032237,-6678.67064471,0.0001379,2]
[330941724,1719957032246,-408.47745746,0.00013799,2]
[330941726,1719957032255,-317.8821612,0.00013799,2]
[330941727,1719957032265,-35311.72668898,0.0001387,2]
[330941728,1719957032273,-219.88,0.0001389,3]
[330941729,1719957032283,-3110.07951183,0.00013899,2]
[330941730,1719957032294,-194.7796,0.000139,2]
[330941731,1719957032304,-168.07414263,0.00013946,2]
[330941732,1719957032313,-183.77455705,0.00013946,2]
[330941733,1719957032323,-166.25695155,0.0001399,2]
[330941734,1719957032333,-166.25695155,0.0001399,2]
[330941735,1719957032344,-2201.0498595,0.00013999,2]
[330941736,1719957032353,-190354.53964157,0.00014,2]
[330941737,1719957032365,-845.39999995,0.00014,2]
[330941738,1719957032378,-12806.35085811,0.00014,2]
[330941739,1719957032399,-521961.95146889,0.00014,2]
[330941741,1719957032410,-857.74670121,0.00014,2]
[330941743,1719957032421,-4380.58226224,0.00014,2]